Cogmind - Beta 13 @@@ ROGUE MODE // 2024.04.01 @ 00:05:53 Player: Sixten Result: Destroyed by S-10 Pest with Light Assault Rifle Performance ------------- Evolutions (1) 500 Regions Visited (2) 400 Robots Destroyed (22) 110 Value Destroyed (533) 533 Prototype IDs (0) 0 Alien Tech Used (0) 0 Bonus (0) 0 TOTAL SCORE: 1543 Bonus ------- None Cogmind --------- Core Integrity 0/400 Matter 273/300 Energy 125/125 System Corruption 2% Temperature Cool (0) Movement Treading (160) Location -9/Materials Parts ------- > --- POWER (1) -------- Light Ion Engine > --- PROPULSION (4) --- Light Treads Light Treads > --- UTILITY (2) ------ Large Storage Unit Improved Signal Interpreter > --- WEAPON (2) ------- Light Assault Rifle Heavy Assault Rifle > --- INVENTORY (15) --- Light Armor Plating Heavy Armor Plating Heavy Armor Plating Heavy Armor Plating Hacking Suite Hacking Suite Small Laser Particle Gun Particle Gun Particle Gun Heavy Assault Rifle Peak State ------------ > --- POWER ------------ (None) > --- PROPULSION ------- Aluminum Leg Aluminum Leg Aluminum Leg Aluminum Leg > --- UTILITY ---------- Large Storage Unit Improved Signal Interpreter > --- WEAPON ----------- Particle Gun Light Assault Rifle > --- INVENTORY -------- Sensor Array Sensor Array Light Armor Plating Heavy Armor Plating Heavy Armor Plating Heavy Armor Plating Small Laser Particle Gun Particle Gun Particle Gun Light Assault Rifle Light Assault Rifle [Rating: 14] Favorites ----------- Power Ion Engine Engine Ion Engine Propulsion Aluminum Leg Treads Light Treads Leg Aluminum Leg Utility Large Storage Unit Storage Large Storage Unit Processor Signal Interpreter Weapon Particle Gun Energy Gun Particle Gun Ballistic Gun Light Assault Rifle Build | -11 -10 -9 ------- Run | Yrd Mat Mat Slots Evolved 2 | . . 2 Power . | . . . Propulsion 2 | . . 2 Utility . | . . . Weapon . | . . . Parts Attached 21 | 5 5 11 Power 3 | 1 1 1 Engine 3 | 1 1 1 Core . | . . . Reactor . | . . . Propulsion 7 | 2 . 5 Treads 2 | . . 2 Leg 5 | 2 . 3 Wheel . | . . . Hover . | . . . Flight . | . . . Utility 3 | . 2 1 Device . | . . . Storage 1 | . 1 . Processor 2 | . 1 1 Hackware . | . . . Protection . | . . . Artifact . | . . . Weapon 8 | 2 2 4 Energy Gun 5 | 2 2 1 Energy Cannon . | . . . Ballistic Gun 3 | . . 3 Ballistic Cannon . | . . . Launcher . | . . . Special Weapon . | . . . Impact Weapon . | . . . Slashing Weapon . | . . . Piercing Weapon . | . . . Special Melee Weapon . | . . . Unidentified Prototypes . | . . . Parts Lost 11 | . 5 6 Power 2 | . 2 . Propulsion 5 | . 1 4 Utility . | . . . Weapon 4 | . 2 2 Highest Loss Streak 5 | . 3 5 To Critical Strikes . | . . . Average Slot Usage (%) 87 | . 94 73 Engine 10 | . 13 2 Treads 1 | . . 5 Leg 25 | . 27 21 Storage 10 | . 10 11 Processor 11 | . 11 11 Energy Gun 21 | . 28 7 Ballistic Gun 4 | . . 13 Naked Turns . | . . . Heaviest Build 31 | 8 31 27 Greatest Support 40 | 20 20 40 Greatest Overweight (x) 7 | . 3 7 Average Overweight (x) . | . . . Largest Inventory Capacity 15 | 5 15 15 Average Capacity 13 | 5 12 15 Most Carried 15 | 1 12 15 Average Carried 9 | . 7 14 Final Capacity 15 | 5 15 15 Final Carried 14 | 1 12 14 Class Distribution -------------------- 91% | Mutant 8% | Scavenger-Mutant Dominant Class ---------------- Mutant | -10/Materials Mutant | -9/Materials Resources | -11 -10 -9 ----------- Run | Yrd Mat Mat Matter Collected 516 | 111 207 198 Remotely . | . . . Salvage Created 703 | . 252 451 Parts 42 | . 12 30 Haulers Intercepted . | . . . Recyclers Shooed . | . . . Parts Field Recycled . | . . . Retrieved Matter . | . . . Parts Self-Destructed . | . . . Prevented . | . . . Kills | -11 -10 -9 ------- Run | Yrd Mat Mat Combat Hostiles Destroyed 18 | . 7 11 Guns 17 | . 6 11 Classes Destroyed 6 | . 3 3 Worker 3 | . . 3 Watcher 1 | . 1 . Swarmer 7 | . 3 4 Grunt 6 | . 4 2 Duelist 1 | . . 1 Sentry 4 | . . 4 Best Kill Streak 5 | . 2 5 Combat Bots Only 5 | . 2 5 Max Kills in Single Turn 1 | . 1 1 Gunslinging . | . . . Exploded . | . . . Melee . | . . . Uniques/NPCs Destroyed . | . . . Combat | -11 -10 -9 -------- Run | Yrd Mat Mat Hostile Shots Fired 228 | . 92 136 Missed 56 | . 23 33 Damage Taken 1981 | . 752 1229 Core 592 | . 190 402 Absorbed by Shields . | . . . Core Remaining (%) 62 | 100 24 . Volleys Fired 112 | . 41 71 Largest 2 | . 2 2 Hottest 130 | . 130 85 Shots Fired 192 | . 81 111 Gun 192 | . 81 111 Cannon . | . . . Launcher . | . . . Special . | . . . Kinetic 90 | . . 90 Thermal 73 | . 52 21 Explosive . | . . . Electromagnetic 29 | . 29 . Robot Hit Streak 13 | . 7 13 Robot Miss Streak 10 | . 5 10 Penetration Max . | . . . Secondary Targets . | . . . Shots Hit Robots 118 | . 44 74 Core Hits 37 | . 13 24 Critical Kills . | . . . Critical Parts Destroyed . | . . . Critical Strikes 1 | . 1 . Burn 1 | . 1 . Melee Attacks . | . . . Impact . | . . . Slashing . | . . . Piercing . | . . . Sneak Attacks . | . . . Combat Hostiles . | . . . Follow-up Attacks . | . . . Damage Inflicted 1330 | . 585 745 Guns 1301 | . 572 729 Cannons . | . . . Explosions . | . . . Melee . | . . . Ramming 29 | . 13 16 Kinetic 559 | . . 559 Thermal 554 | . 384 170 Explosive . | . . . Electromagnetic 188 | . 188 . Impact . | . . . Slashing . | . . . Piercing . | . . . Highest Corruption 2 | . . 2 Average Corruption 1 | . . 1 Corruption Purged . | . . . Corruption Blocked . | . . . Effects 1 | . . 1 Matter Fused 1 | . . 1 Overload Shots . | . . . Overflow Damage . | . . . Projectiles . | . . . Explosions . | . . . Melee . | . . . Knockbacks . | . . . Impact . | . . . Kinetic . | . . . Secondary . | . . . Self-Inflicted Damage . | . . . Shots . | . . . Rammed . | . . . Targets Rammed 5 | . 2 3 Kicked 5 | . 2 3 Crushed . | . . . Highest Temperature 553 | . 553 56 Average Temperature 103 | . 137 20 Received Heat Transfer 645 | . 309 336 Effects 9 | . 9 . Shutdowns 2 | . 2 . Energy Bleed 3 | . 3 . Interference 3 | . 3 . Matter Decay 1 | . 1 . Siege Activations . | . . . Robots Corrupted . | . . . Combat Hostiles . | . . . Parts Fried . | . . . Impact Corruptions . | . . . Robots Melted 1 | . 1 . Combat Hostiles 1 | . 1 . Parts Melted 3 | . 3 . Heat Transferred 1387 | . 980 407 Parts Sabotaged . | . . . Parts Stolen . | . . . Parts Stripped . | . . . Power Chain Reactions . | . . . Alert | -11 -10 -9 ------- Run | Yrd Mat Mat Peak Influence 221 | . 127 221 Initial . | . . . Average 37 | . 31 54 Maximum Alert Level 1 | . . 1 Low Security (%) 99 | 100 100 96 Level 1 . | . . 3 Level 2 . | . . . Level 3 . | . . . Level 4 . | . . . Level 5 . | . . . High Security . | . . . Max Security . | . . . Squads Dispatched 3 | . 2 1 Investigation . | . . . Extermination . | . . . Reinforcement 3 | . 2 1 Assault . | . . . Garrison . | . . . Intercept . | . . . Searches Triggered . | . . . Construction Impeded . | . . . Haulers Reinforced . | . . . Active Scanning Responses . | . . . Cargo Convoy Interrupts . | . . . Stealth | -11 -10 -9 --------- Run | Yrd Mat Mat Distress Signals 4 | . 2 2 Communications Jammed . | . . . Distress Signals . | . . . Times Spotted 38 | . 19 19 Peak Tracking Total 6 | . 4 6 Tactical Retreats . | . . . Traps | -11 -10 -9 ------- Run | Yrd Mat Mat Traps Triggered 2 | . . 2 Indirectly . | . . . Trap Hack Attempts . | . . . Triggered . | . . . Disarmed . | . . . Reprogrammed . | . . . Reused . | . . . Traps Extracted . | . . . Installed . | . . . Triggered . | . . . Machines | -11 -10 -9 ---------- Run | Yrd Mat Mat Machines Disabled . | . . . Max in Single Turn . | . . . Machines Repaired . | . . . Machines Dismantled . | . . . Machines Sabotaged . | . . . Overloaded Fab Kills . | . . . Hacking | -11 -10 -9 --------- Run | Yrd Mat Mat Machines Accessed 1 | . 1 . Terminals 1 | . 1 . Fabricators . | . . . Repair Stations . | . . . Recycling Units . | . . . Scanalyzers . | . . . Garrison Access . | . . . Total Hacks 1 | . 1 . Successful 1 | . 1 . Failed . | . . . Catastrophic . | . . . Database Lockouts . | . . . Manual . | . . . Terminals 1 | . 1 . Fabricators . | . . . Repair Stations . | . . . Recycling Units . | . . . Scanalyzers . | . . . Garrison Access . | . . . Terminal Hacks 1 | . 1 . Zone Layout 1 | . 1 . Fabricator Hacks . | . . . Repair Station Hacks . | . . . Recycling Unit Hacks . | . . . Scanalyzer . | . . . Garrison Access Hacks . | . . . Unauthorized Hacks . | . . . Terminals . | . . . Fabricators . | . . . Repair Stations . | . . . Recycling Units . | . . . Scanalyzers . | . . . Garrison Access . | . . . Data Cores Recovered . | . . . Used . | . . . Hacking Detections . | . . . Full Trace Events . | . . . Feedback Events . | . . . Feedback Blocked . | . . . Robot Schematics Acquired . | . . . Robots Built . | . . . Authchips . | . . . Time . | . . . Total Robot Build Rating . | . . . Part Schematics Acquired . | . . . Parts Built . | . . . Authchips . | . . . Time . | . . . Total Part Build Rating . | . . . Parts Repaired . | . . . Time . | . . . Parts Recycled . | . . . Recycled Matter . | . . . Retrieved Matter . | . . . Retrieved Components . | . . . Parts Scanalyzed . | . . . Part Schematics Acquired . | . . . Parts Damaged . | . . . Bothacking | -11 -10 -9 ------------ Run | Yrd Mat Mat Used RIF Installer . | . . . Robots Hacked . | . . . Non-combat . | . . . Combat . | . . . Robot Hacks Applied . | . . . Relay Couplers Released . | . . . Fabnet Peak Effective % . | . . . Robots Rewired . | . . . Allies Hacked . | . . . Hacks Repelled . | . . . Allies | -11 -10 -9 -------- Run | Yrd Mat Mat Total Allies . | . . . Largest Group . | . . . Highest-Rated Group . | . . . Highest-Rated Ally . | . . . Total Orders . | . . . Ally Attacks . | . . . Total Damage . | . . . Kills . | . . . Allies Corrupted . | . . . Allies Melted . | . . . Intel | -11 -10 -9 ------- Run | Yrd Mat Mat Robot Analysis Total . | . . . Derelict Logs Recovered . | . . . Drone Launches . | . . . Drone Recoveries . | . . . Exploration | -11 -10 -9 ------------- Run | Yrd Mat Mat Turns Passed 1925 | 81 1252 592 Spaces Moved 933 | 67 627 239 Core 17 | 11 . 6 Treads 71 | . . 71 Legs 845 | 56 627 162 Wheels . | . . . Hover . | . . . Flight . | . . . Fastest Speed 50 | 50 120 120 Average Speed 162 | 108 171 153 Slowest Speed 400 | 120 330 400 Overloaded Moves . | . . . Propulsion Burnouts . | . . . Robots Hopped . | . . . Cave-ins Triggered . | . . . Exploration Rate (%) 38 | 4 88 22 Regions Visited 2 Branch Regions . Pre-discovered Areas . | . . . Known Exits Taken 1 | . 1 . Unknown Exits Taken 1 | 1 . . Scrap Searched . | . . . Spaces Dug . | . . . Terrain Destroyed . | . . . Melee . | . . . Projectile . | . . . AOE . | . . . Terrain Rammed . | . . . Walls Destroyed . | . . . Machines Disabled . | . . . Actions | -11 -10 -9 --------- Run | Yrd Mat Mat Total 1163 | 73 723 367 Wait 68 | . 35 33 Move 931 | 66 626 239 Hop . | . . . Pick Up 23 | 2 14 7 Fast Attach 9 | 4 2 3 Attach 9 | 1 3 5 Detach . | . . . Swap 3 | . . 3 Drop 3 | . . 3 Fire 112 | . 41 71 Melee . | . . . Ram . | . . . Kick 5 | . 2 3 Crush . | . . . Escape Stasis . | . . . Rewire . | . . . Trap . | . . . Miscellaneous . | . . . Route ------- -11/Scrapyard -10/Materials (discovered 4 exits: *Mat x3 / [*Min]) -9/Materials (discovered 1 exit: [*Min]) History --------- Turn | Location | Event 6 | -11/Scrapyard | Discovered new exit (range 16) 82 | -11/Scrapyard | Entered Materials 292 | -10/Materials | Discovered new exit (range 10) 300 | -10/Materials | Build established: Mutant 346 | -10/Materials | Discovered new exit (range 3) 496 | -10/Materials | Discovered new exit (range 8) 511 | -10/Materials | Identified exit to Materials 751 | -10/Materials | Discovered exit to Materials (range 3) 889 | -10/Materials | Lost 3 parts (1p2w) 1028 | -10/Materials | Core integrity fell below 50% 1334 | -10/Materials | Entered another Materials area 1334 | -9/Materials | Evolved 2 slots: Propulsion x2 1594 | -9/Materials | Discovered new exit (range 12) 1713 | -9/Materials | Core integrity fell below 50% 1758 | -9/Materials | Lost 5 parts (3n2w) 1836 | -9/Materials | Core integrity fell below 20% 1926 | -9/Materials | Destroyed by S-10 Pest with Light Assault Rifle Last Messages --------------- 01801_ W-16 Scout sends out distress signal. 01808_ U-05 Engineer lays Concrete. 01843_ R-06 Scavenger collects Wheel. 01851_ R-06 Scavenger collects Flight Unit. 01853_ G-34 Mercenary destroyed. 01855_ K-01 Serf collects debris. 01856_ R-06 Scavenger collects Imp. Ion Engine. 01860_ K-01 Serf collects debris. 01864_ K-01 Serf destroyed. 01867_ Acquired 42 matter. 01870_ R-06 Scavenger collects Aluminum Leg. 01872_ K-01 Serf collects debris. 01878_ R-06 Scavenger collects Lgt. Armor Plating. 01881_ System corrupted: Matter fused (-5). 01881_ K-01 Serf collects debris. 01884_ W-16 Scout sends out distress signal. 01884_ K-01 Serf collects debris. 01887_ Critical hit (Burn: +37). 01887_ K-01 Serf collects debris. Map ----- +----------------------------------------------------+ | ######??????S "???????????????????????????? | | #########???"" "???????????????????????????? | | ?# #????" "???????????????????????????? | | ## """ #????? ???????????????????????????? | | =# """ #????##+##?????????????????????????? | | # """ ###### ####??????????????????????? | | + + #??????????????????????? | | # ###### #??????????????????????? | | ########????# #??????????????????????? | | #??????????# #??????????????????????? | | ?????????# #??????????????????????? | | ????????# #??????????????????????? | | ??????# ! #??????????????????????? | | ##### ?????# %*!#??????????????????????? | | ##????? ????# ##+########???????????????? | | #?????#? ???# #*%= ! #???????????????? | | #?????# ???# #% % #???????????????? | | #?????# ??# / % #???????????????? | | +????## ### # % #????????? #????? | | ##????# ################# ^ #????? | | ??????# a ?????? | | ??????# " #??????????? | | ??????# """ #??????????? | | ??????# "" #######s####+##??????????? | | ?????"" """ #?????# #????????????????? | | ?????"" "" #?????#@#????????????????? | | ?????"T!!! """ #???? Y #???????????????? | | ?????""!!! """ #?? """ #???????????????? | | ?????""!!! """ # """ #???????????????? | | ??????# " # """ #???????????????? | | ??????? + #???????????????? | | ???????? # """ #???????????????? | | ???????? # ???"" #???????????????? | | ????????? ##?????" #???????????????? | | ????????#+###### #?????? #???????????????? | | ???????????????# ???????####???????????????? | | ???????????????# ??????????????????????????? | | ???????????????# ??????????????????????????? | | ???????????????# ??????????????????????????? | | ????????????????!??????????????????????????? | | ???????????????? ??????????????????????????? | | ???????????????? ??????????????????????????? | | ???????????????????????????????????????????? | | ???????????????????????????????????????????? | | ???????????????????????????????????????????? | | ???????????????????????????????????????????? | | ???????????????????????????????????????????? | | ???????????????????????????????????????????? | | ???????????????????????????????????????????? | | ???????????????????????????????????????????? | +----------------------------------------------------+ Best States ------------- Heat Dissipation 28 Energy Generation 10 Energy Capacity 250 Matter Stores 300 Matter Capacity 300 Sight Range 16 Terrain Scan Density 10 Evasion (%) 55 Recoil Reduction 2 Item Schematics ----------------- None Robot Schematics ------------------ None Fabricated ------------ Nothing Alien Tech Used ----------------- None Achievements -------------- None Challenges ------------ None Game ------ Seed ElectronPlasmaSword Manual? 0 Play Time 00:14:22 Cumulative 6.8 hours Start 2024.03.31 @ 23:52:53 End 2024.04.01 @ 00:05:53 Sessions 1 Manual Loads 0 Difficulty Rogue Special Mode None Game No. 33 Rogue 33 Adventurer 0 Explorer 0 Win Type - Total 0 Types 0/0/0/0/0/0/0/0/0 Lore% 8 Gallery% 9 Achievement% 10 Wizard Run 0 Options --------- Layout 1 ASCII 0 Keyboard 1 Movement Arrows Keybinds 0 Fullscreen 1 Font 24/Smallcaps Map View 50x35 Zoom Use 0% Tactical HUD 1 Map Filters NONE Filters NONE Steam 1 RUN: b789ae07-fcdc-44bd-8da5-8bb09722e3d7